bitfinex/quotes_SOLUSD_20230105
["timestamp","ask_amount","ask_price","bid_price","bid_amount"]
[1672905463384,36.1285179,13.268,13.26,177.474]
[1672905463924,36.1285179,13.268,13.26,234.074]
[1672905464132,36.1285179,13.268,13.26,177.474]
[1672905464320,119.92210349,13.268,13.258,177.474]
[1672905464531,56.57,13.267,13.258,177.474]
[1672905464742,20.0,13.266,13.258,177.474]
[1672905464967,75.53987046,13.266,13.258,177.474]
[1672905465173,16.1285179,13.265,13.258,177.474]
[1672905465381,16.1285179,13.265,13.259,177.474]
[1672905465589,20.0,13.264,13.259,177.474]
[1672905466010,16.1285179,13.263,13.259,177.474]
[1672905466220,20.0,13.262,13.259,177.474]
[1672905466431,20.0,13.262,13.257,177.474]
[1672905466639,16.1285179,13.261,13.257,177.474]
[1672905468552,5.17733205,13.261,13.257,177.474]
[1672905468746,16.1285179,13.26,13.257,177.474]
[1672905469077,20.0,13.262,13.257,177.474]
[1672905469390,16.1285179,13.261,13.257,177.474]
[1672905480429,15.52601714,13.263,13.257,177.474]
[1672905480651,20.0,13.262,13.257,177.474]
[1672905481043,15.52601714,13.261,13.257,177.474]
[1672905483160,20.0,13.262,13.257,177.474]
[1672905483353,20.0,13.264,13.257,177.474]
[1672905483564,20.0,13.265,13.26,20.0]
[1672905483897,15.52601714,13.268,13.26,20.0]
[1672905484107,20.0,13.267,13.259,177.474]
[1672905484638,35.52601714,13.267,13.259,20.0]
[1672905486001,35.52601714,13.267,13.258,177.474]
[1672905487162,35.52601714,13.267,13.259,20.0]
[1672905491477,35.52601714,13.267,13.258,177.474]
[1672905491778,79.90825017,13.267,13.258,177.474]
[1672905492622,79.90825017,13.267,13.259,20.0]
[1672905494928,79.90825017,13.267,13.258,177.474]
[1672905500168,39.41135256,13.266,13.258,20.0]
[1672905500375,20.0,13.265,13.257,177.474]
[1672905500587,35.52601714,13.265,13.257,177.474]
[1672905500818,15.52601714,13.264,13.257,177.474]
[1672905501019,20.0,13.263,13.257,177.474]
[1672905517948,35.65171131,13.263,13.257,177.474]
[1672905523003,80.03394434,13.263,13.257,177.474]
[1672905534989,80.03394434,13.263,13.254,20.0]
[1672905535515,39.41135256,13.262,13.257,20.0]
[1672905535726,39.41135256,13.262,13.256,177.474]
[1672905535922,15.79137149,13.261,13.256,177.474]
[1672905536251,15.29137149,13.261,13.257,20.0]
[1672905537190,15.29137149,13.261,13.256,177.474]
[1672905538145,15.29137149,13.261,13.257,20.0]
[1672905539115,15.29137149,13.261,13.256,177.474]
[1672905542141,15.29137149,13.261,13.256,20.0]
[1672905543201,15.29137149,13.261,13.255,177.474]
[1672905544149,15.29137149,13.261,13.254,20.0]
[1672905544362,59.67360452,13.261,13.253,177.474]
[1672905544575,59.41135256,13.26,13.253,177.474]
[1672905544889,119.58495708,13.26,13.253,177.474]
[1672905545091,39.41135256,13.259,13.253,177.474]
[1672905545304,20.0,13.258,13.25,20.0]
[1672905545518,35.79137149,13.258,13.25,20.0]
[1672905545712,35.79137149,13.258,13.252,177.474]
[1672905546887,15.79137149,13.257,13.25,20.0]
[1672905547101,20.0,13.256,13.25,20.0]
[1672905547408,20.0,13.256,13.252,20.0]
[1672905547629,15.79137149,13.255,13.251,177.474]
[1672905547845,20.0,13.256,13.251,177.474]
[1672905547846,20.0,13.254,13.251,177.474]
[1672905548033,20.0,13.256,13.251,177.474]
[1672905548567,20.0,13.256,13.249,177.474]
[1672905548764,20.0,13.257,13.25,20.0]
[1672905548978,15.76386302,13.256,13.251,177.474]
[1672905549192,20.0,13.255,13.251,177.474]
[1672905550047,20.0,13.256,13.248,177.474]
[1672905550256,20.0,13.256,13.249,20.0]
[1672905551519,56.59,13.263,13.249,20.0]
[1672905551733,20.0,13.262,13.251,177.474]
[1672905551926,20.0,13.262,13.252,20.0]
[1672905552135,20.0,13.262,13.253,177.474]
[1672905552359,20.0,13.262,13.254,20.0]
[1672905552561,20.0,13.262,13.255,177.474]
[1672905552980,20.0,13.264,13.258,20.0]
[1672905554463,20.0,13.264,13.258,197.474]
[1672905555504,20.0,13.264,13.258,20.0]
[1672905557925,20.0,13.264,13.261,20.0]
[1672905558562,64.38223303,13.27,13.261,20.0]
[1672905561942,80.67684205,13.27,13.261,20.0]
[1672905562252,64.38223303,13.27,13.261,20.0]
[1672905562462,16.29460902,13.269,13.26,177.474]
[1672905562778,64.38223303,13.268,13.26,177.474]
[1672905563304,16.29460902,13.267,13.26,177.474]
[1672905563621,20.0,13.266,13.26,177.474]
[1672905564246,80.67684205,13.266,13.259,20.0]
[1672905567074,64.38223303,13.266,13.259,20.0]
[1672905567292,64.38223303,13.266,13.261,20.0]
[1672905568352,64.38223303,13.266,13.259,20.0]
[1672905571926,64.38223303,13.266,13.258,177.474]
[1672905572237,80.67684205,13.266,13.258,177.474]
[1672905573184,80.67684205,13.266,13.258,20.0]
[1672905575392,80.67684205,13.266,13.257,177.474]
[1672905576647,64.38223303,13.266,13.257,177.474]
[1672905578529,56.58,13.265,13.258,177.474]
[1672905578738,20.0,13.264,13.258,177.474]
[1672905579368,76.58,13.264,13.258,177.474]
[1672905579579,76.58,13.264,13.257,20.0]
[1672905579782,76.58,13.264,13.256,177.474]
[1672905579989,20.0,13.264,13.256,177.474]
[1672905580412,36.29460902,13.264,13.256,177.474]
[1672905581146,137.25684205,13.264,13.256,177.474]
[1672905585474,80.67684205,13.264,13.256,177.474]
[1672905586216,56.59,13.263,13.256,177.474]
[1672905586411,20.0,13.262,13.256,177.474]
[1672905587805,44.38223303,13.264,13.256,177.474]
[1672905587806,20.0,13.263,13.256,177.474]
[1672905588618,36.29460902,13.263,13.256,177.474]
[1672905590316,20.0,13.263,13.256,177.474]
[1672905590710,20.0,13.263,13.256,234.094]
[1672905591587,20.0,13.263,13.256,177.474]
[1672905592077,36.29460902,13.263,13.256,177.474]
[1672905593464,20.0,13.263,13.256,177.474]
[1672905595565,20.0,13.263,13.257,20.0]
[1672905595777,20.0,13.263,13.258,177.474]
[1672905595984,20.0,13.263,13.259,20.0]
[1672905596718,20.0,13.263,13.258,177.474]
[1672905597451,20.0,13.263,13.259,20.0]
[1672905598087,20.0,13.263,13.259,197.474]
[1672905598606,20.0,13.263,13.259,177.474]
[1672905598818,20.0,13.265,13.259,177.474]
[1672905599017,20.0,13.267,13.259,20.0]
[1672905599459,36.29460902,13.267,13.26,177.474]
[1672905600506,36.29460902,13.267,13.257,56.61]
[1672905600507,36.29460902,13.267,13.261,177.474]
[1672905600726,80.67684205,13.267,13.261,177.474]
[1672905600912,16.29460902,13.266,13.261,177.474]
[1672905601131,20.0,13.265,13.261,177.474]
[1672905601565,20.0,13.265,13.258,177.474]
[1672905601758,16.29460902,13.264,13.258,177.474]
[1672905601967,20.0,13.263,13.258,177.474]
[1672905602179,108.52082557,13.263,13.258,177.474]
[1672905602406,16.29460902,13.262,13.258,177.474]
[1672905602599,56.61986823,13.262,13.259,177.474]
[1672905602809,45.76281254,13.261,13.259,177.474]
[1672905603662,45.76281254,13.261,13.256,177.474]
[1672905603982,62.05742156,13.261,13.256,177.474]
[1672905604180,45.76281254,13.261,13.256,177.474]
[1672905604599,45.76281254,13.26,13.256,177.474]
[1672905607142,45.76281254,13.26,13.253,177.474]
[1672905607325,94.57371241,13.26,13.253,177.474]
[1672905607535,20.0,13.259,13.253,177.474]
[1672905607766,68.01614588,13.259,13.253,177.474]
[1672905607978,48.01614588,13.258,13.253,177.474]
[1672905608297,20.0,13.257,13.249,197.474]
[1672905608698,68.01614588,13.257,13.249,197.474]
[1672905609022,68.01614588,13.257,13.249,177.474]
[1672905609550,68.01614588,13.257,13.25,177.474]
[1672905609750,20.0,13.255,13.25,177.474]
[1672905609959,20.0,13.254,13.25,177.474]
[1672905610169,124.64614588,13.254,13.25,177.474]
[1672905610484,48.01614588,13.253,13.25,177.474]
[1672905610704,20.0,13.252,13.251,139.4641]
[1672905610918,40.0,13.252,13.243,227.3]
[1672905611122,56.64,13.251,13.243,227.3]
[1672905611438,68.01614588,13.25,13.243,227.3]
[1672905611648,84.3107549,13.25,13.244,227.3]
[1672905611863,120.9607549,13.249,13.244,227.3]
[1672905612058,20.0,13.248,13.244,227.3]
[1672905612263,68.01614588,13.248,13.244,227.3]
[1672905612491,48.01614588,13.247,13.244,227.3]
[1672905612689,20.0,13.246,13.24,20.0]
[1672905612912,20.0,13.246,13.239,227.3]
[1672905613225,48.01614588,13.245,13.239,227.3]
[1672905613536,20.0,13.244,13.239,227.3]
[1672905613755,20.0,13.244,13.238,20.0]
[1672905613944,48.01614588,13.243,13.238,20.0]
[1672905614155,20.0,13.242,13.238,20.0]
[1672905614471,20.0,13.242,13.24,20.0]
[1672905614680,20.0,13.246,13.239,227.3]
[1672905614891,16.29460902,13.245,13.241,227.3]
[1672905615207,20.0,13.244,13.241,227.3]
[1672905615427,117.20581492,13.244,13.241,227.3]
[1672905615621,16.29460902,13.243,13.241,227.3]
[1672905615829,20.0,13.242,13.241,227.3]
[1672905617096,20.0,13.242,13.236,227.3]
[1672905617309,20.0,13.245,13.236,227.3]
[1672905617743,21.52,13.249,13.245,302.77]
[1672905617939,54.34863644,13.252,13.245,75.47]
[1672905618150,16.29460902,13.256,13.245,75.47]
[1672905618376,117.06,13.261,13.245,302.77]
[1672905618565,20.0,13.263,13.246,20.0]
[1672905618779,30.22188921,13.262,13.254,302.77]
[1672905618987,117.6838,13.265,13.254,302.77]
[1672905619413,117.6838,13.265,13.255,20.0]
[1672905619861,20.0,13.269,13.258,227.3]
[1672905620166,20.0,13.269,13.258,302.77]
[1672905620355,20.0,13.268,13.258,227.3]
[1672905620567,20.0,13.269,13.258,227.3]
[1672905620983,20.0,13.269,13.25,20.0]
[1672905620984,20.0,13.269,13.26,302.77]
[1672905621191,15.39927869,13.268,13.26,302.77]
[1672905621411,15.39927869,13.268,13.26,227.3]
[1672905621645,27.22623471,13.271,13.261,75.47]
[1672905621988,42.6255134,13.271,13.26,227.3]
[1672905622173,20.0,13.269,13.254,20.0]
[1672905622491,35.39927869,13.268,13.256,227.3]
[1672905622703,56.93927869,13.268,13.256,302.77]
[1672905622894,15.39927869,13.267,13.256,227.3]
[1672905623108,40.0,13.266,13.256,227.3]
[1672905623315,61.55,13.266,13.256,227.3]
[1672905623535,15.39927869,13.265,13.255,227.3]
[1672905623741,20.0,13.264,13.255,227.3]
[1672905623957,41.55,13.264,13.255,227.3]
[1672905624266,15.39927869,13.263,13.255,227.3]
[1672905624681,41.55,13.262,13.255,227.3]
[1672905625007,15.39927869,13.261,13.255,227.3]
[1672905625208,17.62827869,13.262,13.255,227.3]
[1672905625534,15.39927869,13.261,13.255,227.3]
[1672905625751,15.39927869,13.261,13.254,322.77]
[1672905626066,112.58395738,13.265,13.257,20.0]
[1672905626271,18.32105746,13.269,13.256,227.3]
[1672905626487,14.55205746,13.264,13.256,227.3]
[1672905626801,18.32105746,13.269,13.256,227.3]
[1672905627004,14.55205746,13.268,13.253,20.0]
[1672905627334,20.0,13.267,13.253,20.0]
[1672905627522,20.0,13.267,13.255,227.3]
[1672905627734,14.55205746,13.266,13.255,227.3]
[1672905628057,20.0,13.265,13.255,227.3]
[1672905628465,14.55205746,13.264,13.253,20.0]
[1672905628677,20.0,13.263,13.253,20.0]
[1672905628887,20.0,13.263,13.255,227.3]
[1672905629100,12.9040454,13.262,13.255,227.3]
[1672905629519,20.0,13.261,13.255,227.3]
[1672905629738,20.0,13.261,13.25,227.3]
[1672905629946,12.9040454,13.26,13.25,227.3]
[1672905630265,20.0,13.259,13.24,247.3]
[1672905630464,20.0,13.259,13.243,20.0]
[1672905630675,12.9040454,13.258,13.243,20.0]
[1672905630886,20.0,13.257,13.245,227.3]
[1672905631101,20.0,13.256,13.245,227.3]
[1672905631425,20.0,13.255,13.245,227.3]
[1672905631646,20.0,13.255,13.247,227.3]
[1672905631860,12.9040454,13.254,13.247,227.3]
[1672905632056,20.0,13.253,13.247,227.3]
[1672905632481,12.9040454,13.252,13.247,227.3]
[1672905632691,20.0,13.251,13.248,227.3]
[1672905633000,12.9040454,13.25,13.248,227.3]
[1672905633206,20.0,13.249,13.248,227.3]
[1672905633740,32.9040454,13.249,13.243,227.3]
[1672905633957,32.9040454,13.249,13.246,227.3]
[1672905635220,32.9040454,13.249,13.244,20.0]
[1672905635648,108.2862,13.258,13.247,20.0]
[1672905635840,25.8040454,13.248,13.246,227.3]
[1672905636055,12.9040454,13.248,13.247,283.96]
[1672905636273,12.9040454,13.248,13.247,227.3]
[1672905637223,32.9040454,13.248,13.246,20.0]
[1672905637433,108.2862,13.258,13.246,20.0]
[1672905637627,52.85,13.263,13.248,227.3]
[1672905637957,12.9040454,13.26,13.249,20.0]
[1672905638148,12.9040454,13.26,13.251,20.0]
[1672905638588,12.9040454,13.26,13.253,227.3]
[1672905638989,20.0,13.259,13.255,227.3]
[1672905639323,12.9040454,13.26,13.256,20.0]
[1672905639533,164.8617,13.265,13.256,20.0]
[1672905639740,443.56920662,13.277,13.256,20.0]
[1672905639741,52.82,13.27,13.257,227.3]
[1672905639956,11.48550156,13.265,13.257,227.3]
[1672905640148,52.86,13.271,13.259,227.3]
[1672905640376,11.48550156,13.269,13.26,20.0]
[1672905640791,11.48550156,13.269,13.261,227.3]
[1672905641110,20.0,13.268,13.261,227.3]
[1672905641512,11.48550156,13.267,13.261,227.24]
[1672905641851,11.48550156,13.267,13.259,227.24]
[1672905642056,20.0,13.266,13.259,227.24]
[1672905642457,11.48550156,13.265,13.261,227.24]
[1672905642688,20.0,13.264,13.261,227.24]
[1672905643107,11.48550156,13.263,13.261,227.24]
[1672905643424,11.48550156,13.263,13.259,227.24]
[1672905643620,11.48550156,13.263,13.26,20.0]
[1672905643827,11.48550156,13.263,13.259,227.24]
[1672905644040,11.48550156,13.263,13.253,117.0221]
[1672905644041,20.0,13.262,13.256,227.3]
[1672905644464,11.48550156,13.261,13.255,227.3]
[1672905644673,20.0,13.26,13.255,227.3]
[1672905645110,11.48550156,13.259,13.255,227.3]
[1672905645530,20.0,13.258,13.255,227.3]
[1672905645733,20.0,13.258,13.254,227.3]
[1672905645946,11.48550156,13.257,13.254,227.3]
[1672905646245,20.0,13.256,13.254,227.3]
[1672905646684,11.48550156,13.255,13.251,227.3]
[1672905646898,20.0,13.254,13.252,20.0]
[1672905647213,20.0,13.254,13.253,227.3]
[1672905647617,20.0,13.254,13.253,215.81449844]
[1672905647827,31.48550156,13.254,13.253,215.81449844]
[1672905648050,52.88,13.263,13.252,20.0]
[1672905648267,110.1097,13.265,13.255,20.0]
[1672905648268,162.9797,13.265,13.255,20.0]
[1672905648469,11.48550156,13.262,13.255,20.0]
[1672905648786,11.48550156,13.262,13.254,215.81449844]
[1672905649315,20.0,13.261,13.254,20.0]
[1672905649632,11.48550156,13.26,13.253,215.81449844]
[1672905649944,20.0,13.259,13.253,215.81449844]
[1672905650135,20.0,13.258,13.247,227.3]
[1672905650345,30.22242196,13.258,13.247,227.3]
[1672905650557,86.83242196,13.257,13.247,227.3]
[1672905650968,10.22242196,13.256,13.247,227.3]
[1672905651195,20.0,13.255,13.247,227.3]
[1672905651725,20.0,13.255,13.242,56.68]
[1672905651726,10.22242196,13.254,13.243,227.3]
[1672905651922,20.0,13.252,13.243,227.3]
[1672905652128,20.0,13.251,13.243,227.3]
[1672905652339,30.22242196,13.251,13.243,227.3]
[1672905652550,10.22242196,13.25,13.243,227.3]
[1672905652775,20.0,13.249,13.243,20.0]
[1672905652968,10.22242196,13.25,13.245,227.3]
[1672905653279,10.22242196,13.248,13.246,20.0]
[1672905653705,10.22242196,13.248,13.245,227.3]
[1672905654141,10.22242196,13.248,13.243,20.0]
[1672905654569,10.22242196,13.248,13.244,227.3]
[1672905655614,10.22242196,13.248,13.242,227.3]
[1672905655808,20.0,13.247,13.242,227.3]
[1672905656018,20.0,13.247,13.244,227.3]
[1672905656232,10.22242196,13.246,13.244,227.3]
[1672905656437,20.0,13.245,13.244,227.3]
[1672905656777,30.22242196,13.245,13.244,227.3]
[1672905656976,30.22242196,13.245,13.242,20.0]
[1672905657510,30.22242196,13.245,13.241,227.3]
[1672905658667,30.22242196,13.245,13.243,227.3]
[1672905659614,30.22242196,13.245,13.244,227.3]
[1672905660754,30.22242196,13.245,13.241,227.3]
[1672905662761,56.63,13.254,13.241,227.3]
[1672905662978,10.22242196,13.246,13.243,227.3]
[1672905663189,10.22242196,13.246,13.244,20.0]
[1672905663382,10.22242196,13.246,13.245,227.3]
[1672905663600,20.0,13.255,13.245,227.3]
[1672905663601,20.0,13.256,13.245,227.3]
[1672905663809,77.07482196,13.254,13.245,227.3]
[1672905664022,10.22242196,13.254,13.245,227.3]
[1672905664234,66.85242196,13.253,13.245,227.3]
[1672905664438,66.85242196,13.253,13.242,227.3]
[1672905664645,10.22242196,13.252,13.243,20.0]
[1672905665186,56.64,13.251,13.242,227.3]
[1672905665587,29.66065172,13.25,13.242,20.0]
[1672905665921,9.66065172,13.249,13.241,227.3]
[1672905666114,20.0,13.248,13.241,227.3]
[1672905666541,9.66065172,13.247,13.24,227.3]
[1672905666751,20.0,13.246,13.24,227.3]
[1672905667176,9.66065172,13.245,13.24,227.3]
[1672905667598,20.0,13.244,13.24,227.3]
[1672905668011,9.66065172,13.243,13.24,227.3]
[1672905668224,20.0,13.242,13.24,227.3]
[1672905668427,20.0,13.242,13.241,227.3]
[1672905668843,29.66065172,13.242,13.241,227.3]
[1672905669600,29.66065172,13.242,13.237,227.3]
[1672905675463,29.66065172,13.242,13.237,284.0]
[1672905675674,29.66065172,13.242,13.238,227.3]
[1672905676725,29.66065172,13.242,13.239,227.3]
[1672905677904,29.66065172,13.242,13.24,227.3]
[1672905679173,29.66065172,13.242,13.237,20.0]
[1672905679903,29.66065172,13.242,13.236,227.3]
[1672905680618,29.66065172,13.242,13.235,227.3]
[1672905680830,29.66065172,13.242,13.236,20.0]
[1672905681041,29.66065172,13.242,13.235,227.3]
[1672905682637,29.66065172,13.242,13.237,227.3]
[1672905683784,29.66065172,13.242,13.236,227.3]
[1672905684828,29.66065172,13.242,13.237,227.3]
[1672905686110,29.66065172,13.242,13.238,227.3]
[1672905687147,29.66065172,13.242,13.239,227.3]
[1672905687352,29.66065172,13.242,13.236,227.3]
[1672905688192,29.66065172,13.242,13.236,20.0]
[1672905690406,29.66065172,13.242,13.235,284.01]
[1672905690948,29.66065172,13.242,13.236,20.0]
[1672905691998,20.0,13.242,13.236,20.0]
[1672905692193,20.0,13.248,13.236,20.0]
[1672905692404,9.66065172,13.245,13.236,20.0]
[1672905692721,20.0,13.244,13.236,20.0]
[1672905693361,9.66065172,13.243,13.236,20.0]
[1672905693782,20.0,13.242,13.236,20.0]
[1672905694523,56.65,13.249,13.236,20.0]
[1672905694706,66.30065172,13.25,13.239,20.0]
[1672905695049,9.66065172,13.249,13.239,20.0]
[1672905695240,9.66065172,13.249,13.241,227.3]
[1672905695447,9.66065172,13.249,13.242,20.0]
[1672905696198,20.0,13.248,13.242,20.0]
[1672905697667,9.66065172,13.247,13.24,227.3]
[1672905697871,20.0,13.246,13.24,227.3]
[1672905698286,9.66065172,13.245,13.239,20.0]
[1672905698496,20.0,13.244,13.239,20.0]
[1672905698931,9.66065172,13.243,13.239,20.0]
[1672905699122,9.66065172,13.243,13.242,20.0]
[1672905699333,29.66065172,13.243,13.242,20.0]
[1672905699544,29.66065172,13.243,13.241,227.3]
[1672905700088,9.66065172,13.242,13.239,227.3]
[1672905700279,9.66065172,13.242,13.24,20.0]
[1672905701644,20.0,13.243,13.24,20.0]
[1672905701862,9.66065172,13.247,13.24,20.0]
[1672905702180,20.0,13.246,13.242,20.0]
[1672905702717,9.66065172,13.245,13.241,227.3]
[1672905702908,20.0,13.244,13.241,227.3]
[1672905703120,20.0,13.244,13.24,20.0]
[1672905703335,29.66065172,13.244,13.24,20.0]
[1672905704078,29.66065172,13.244,13.238,247.3]
[1672905704489,20.0,13.244,13.238,247.3]
[1672905704706,9.12991371,13.244,13.238,247.3]
[1672905704911,9.12991371,13.244,13.238,303.99]
[1672905705120,20.0,13.243,13.238,247.3]
[1672905705551,9.12991371,13.242,13.238,247.3]
[1672905711959,9.12991371,13.242,13.238,303.99]
[1672905712466,20.0,13.243,13.239,20.0]
[1672905712680,20.0,13.249,13.239,20.0]
[1672905712890,20.0,13.25,13.241,227.3]
[1672905713211,20.0,13.25,13.242,20.0]
[1672905713434,28.62833346,13.25,13.242,20.0]
[1672905713644,85.26833346,13.25,13.242,20.0]
[1672905714273,28.62833346,13.25,13.242,20.0]
[1672905715117,56.65,13.249,13.242,20.0]
[1672905715320,28.62833346,13.25,13.242,20.0]
[1672905715321,65.26833346,13.25,13.242,20.0]
[1672905715538,8.62833346,13.248,13.242,20.0]
[1672905722575,56.61,13.257,13.242,20.0]
[1672905722790,20.0,13.256,13.245,20.0]
[1672905723307,20.0,13.256,13.248,20.0]
[1672905723521,20.0,13.261,13.248,20.0]
[1672905723838,56.6,13.261,13.25,20.0]
[1672905724160,28.62833346,13.26,13.25,20.0]
[1672905724350,85.22833346,13.26,13.25,20.0]
[1672905724559,8.62833346,13.259,13.25,20.0]
[1672905724766,20.0,13.258,13.25,20.0]
[1672905725192,56.61,13.257,13.25,20.0]
[1672905725605,20.0,13.256,13.25,20.0]
[1672905726049,20.0,13.256,13.248,20.0]
[1672905726236,20.0,13.257,13.248,20.0]
[1672905727313,20.0,13.257,13.247,247.3]
[1672905727841,20.0,13.257,13.247,20.0]
[1672905728361,8.62833346,13.256,13.247,20.0]
[1672905728573,20.0,13.255,13.247,20.0]
[1672905728972,8.62833346,13.254,13.247,20.0]
[1672905729182,20.0,13.253,13.247,20.0]
[1672905729612,8.62833346,13.252,13.247,20.0]
[1672905730880,8.62833346,13.252,13.246,20.0]
[1672905731386,8.62833346,13.252,13.248,20.0]
[1672905732018,20.0,13.253,13.248,20.0]
[1672905732229,8.62833346,13.252,13.248,20.0]
[1672905737085,56.62,13.256,13.248,20.0]
[1672905737293,28.62833346,13.255,13.248,20.0]
[1672905737711,8.62833346,13.254,13.248,20.0]
[1672905737917,20.0,13.253,13.248,20.0]
[1672905738467,28.62833346,13.253,13.247,20.0]
[1672905742745,20.0,13.253,13.247,20.0]
[1672905742956,20.0,13.256,13.248,227.3]
[1672905743167,20.0,13.256,13.249,20.0]
[1672905743381,76.61,13.257,13.249,20.0]
[1672905743804,20.0,13.257,13.249,20.0]
[1672905744048,20.0,13.262,13.249,20.0]
[1672905744545,56.6,13.261,13.249,20.0]
[1672905744762,20.0,13.26,13.249,20.0]
[1672905744965,28.62833346,13.26,13.249,20.0]
[1672905745181,65.22833346,13.259,13.249,20.0]
[1672905745380,20.0,13.258,13.249,20.0]
[1672905745608,28.62833346,13.258,13.249,20.0]
[1672905745812,56.61,13.257,13.249,20.0]
[1672905746024,20.0,13.256,13.249,20.0]
[1672905746236,28.62833346,13.256,13.249,20.0]
[1672905746445,8.62833346,13.255,13.249,20.0]
[1672905746779,20.0,13.254,13.249,20.0]
[1672905747195,20.0,13.258,13.249,20.0]
[1672905747508,85.23833346,13.258,13.249,20.0]
[1672905748778,373.4097,13.265,13.252,20.0]
[1672905748779,56.59,13.263,13.252,20.0]
[1672905749184,56.58,13.264,13.252,20.0]
[1672905749498,56.59,13.262,13.252,20.0]
[1672905749718,65.23780227,13.263,13.252,20.0]
[1672905750037,56.6,13.261,13.254,20.0]
[1672905750253,65.23780227,13.262,13.254,20.0]
[1672905750563,56.6,13.26,13.254,20.0]
[1672905750877,56.6,13.261,13.254,20.0]
[1672905751086,56.6,13.259,13.254,20.0]
[1672905751286,56.6,13.26,13.254,20.0]
[1672905751500,56.6,13.261,13.254,20.0]
[1672905752450,65.24780227,13.261,13.254,20.0]
[1672905753291,65.24780227,13.261,13.253,227.3]
[1672905753505,65.24780227,13.261,13.254,20.0]
[1672905756762,8.64780227,13.261,13.254,20.0]
[1672905761586,56.56,13.269,13.256,227.3]
[1672905761793,56.56,13.269,13.258,20.0]
[1672905762018,56.55,13.271,13.261,20.0]
[1672905762439,8.64780227,13.275,13.261,20.0]
[1672905762628,56.54,13.274,13.264,20.0]
[1672905763154,56.53,13.276,13.264,20.0]
[1672905764408,20.0,13.275,13.264,20.0]
[1672905764835,56.54,13.274,13.264,20.0]
[1672905765045,20.0,13.273,13.264,20.0]
[1672905765479,56.55,13.272,13.264,20.0]
[1672905766628,65.19780227,13.272,13.263,227.3]
[1672905767160,65.19780227,13.272,13.265,20.0]
[1672905768954,65.19780227,13.272,13.264,227.3]
[1672905769152,40.0,13.271,13.264,227.3]
[1672905769565,65.20780227,13.27,13.264,199.4156]
[1672905769777,20.0,13.269,13.264,199.4156]
[1672905769999,28.64780227,13.269,13.263,50.0]
[1672905770212,65.21780227,13.268,13.263,50.0]
[1672905770407,20.0,13.267,13.263,50.0]
[1672905770954,56.57,13.266,13.263,50.0]
[1672905771158,20.0,13.265,13.263,50.0]
[1672905771479,20.0,13.265,13.256,20.0]
[1672905771670,56.58,13.265,13.256,247.3]